fUST/lending_fUST_20251006
["ID","MTS","AMOUNT","RATE_DAILY","PERIOD"]
[389507470,1759687845038,-500.0,0.00016986,2]
[389507471,1759687845048,-809.08,0.00016986,2]
[389507472,1759687845058,-500.0,0.00016986,2]
[389507473,1759687845067,-500.0,0.00016986,2]
[389507474,1759687845077,-846.11,0.00016986,2]
[389507475,1759687845087,-500.0,0.00016986,2]
[389507476,1759687845096,-500.0,0.00016986,2]
[389507477,1759687845108,-500.0,0.00016986,2]
[389507478,1759687845118,-540.29,0.00016986,2]
[389507479,1759687845128,-500.0,0.00016986,2]
[389507480,1759687845138,-500.0,0.00016986,2]
[389507481,1759687845148,-500.0,0.00016986,2]
[389507482,1759687845158,-500.0,0.00016986,2]
[389507483,1759687845168,-500.0,0.00016986,2]
[389507484,1759687845179,-500.0,0.00016986,2]
[389507485,1759687845189,-500.0,0.00016986,2]
[389507486,1759687845198,-607.65,0.00016986,2]
[389507487,1759687845208,-1090.27,0.00016986,2]
[389507488,1759687845218,-500.0,0.00016986,2]
[389507489,1759687845227,-500.0,0.00016986,2]
[389507490,1759687845237,-500.0,0.00016986,2]
[389507491,1759687845248,-500.0,0.00016986,2]
[389507492,1759687845260,-500.0,0.00016986,2]
[389507493,1759687845270,-500.0,0.00016986,2]
[389507494,1759687845280,-500.0,0.00016986,2]
[389507495,1759687845290,-506.53877013,0.00016986,2]
[389507496,1759687845300,-500.0,0.00016986,2]
[389507497,1759687845310,-1126.21,0.00016986,2]
[389507498,1759687845320,-500.0,0.00016986,2]
[389507499,1759687845330,-1970.08,0.00016986,2]
[389507500,1759687845339,-500.0,0.00016986,2]
[389507501,1759687845350,-688.66,0.00016986,2]
[389507502,1759687845360,-500.0,0.00016986,2]
[389507503,1759687845369,-500.0,0.00016986,2]
[389507504,1759687845381,-500.0,0.00016986,2]
[389507505,1759687845390,-338.48811205,0.00016986,2]
[389507506,1759687845399,-151.889801,0.00016986,2]
[389507507,1759687845408,-826.99,0.00016986,2]
[389507508,1759687845417,-509.47,0.00016986,2]
[389507509,1759687845427,-500.0,0.00016986,2]
[389507510,1759687845440,-500.0,0.00016986,2]
[389507511,1759687845451,-500.0,0.00016986,2]
[389507512,1759687845461,-500.0,0.00016986,2]
[389507513,1759687845471,-500.0,0.00016986,2]
[389507514,1759687845482,-151.0,0.00016986,2]
[389507515,1759687845491,-500.0,0.00016986,2]
[389507516,1759687845501,-527.85,0.00016986,2]
[389507517,1759687845511,-1261.15,0.00016986,2]
[389507518,1759687845520,-551.82,0.00016986,2]
[389507519,1759687845529,-500.0,0.00016986,2]
[389507520,1759687845538,-2109.13,0.00016986,2]
[389507521,1759687845548,-500.0,0.00016986,2]
[389507522,1759687845558,-500.0,0.00016986,2]
[389507523,1759687845567,-151.0,0.00016986,2]
[389507524,1759687845576,-1075.56,0.00016986,2]
[389507525,1759687845585,-500.0,0.00016986,2]
[389507526,1759687845594,-913.77,0.00016986,2]
[389507527,1759687845606,-500.0,0.00016986,2]
[389507528,1759687845615,-500.0,0.00016986,2]
[389507529,1759687845625,-500.0,0.00016986,2]
[389507530,1759687845634,-500.0,0.00016986,2]
[389507531,1759687845643,-823.64,0.00016986,2]
[389507532,1759687845653,-500.0,0.00016986,2]
[389507533,1759687845662,-506.22,0.00016986,2]
[389507534,1759687845671,-500.0,0.00016986,2]
[389507535,1759687845680,-500.0,0.00016986,2]
[389507536,1759687845691,-1262.69,0.00016986,2]
[389507537,1759687845702,-500.0,0.00016986,2]
[389507538,1759687845712,-500.0,0.00016986,2]
[389507539,1759687845723,-500.0,0.00016986,2]
[389507540,1759687845734,-500.0,0.00016986,2]
[389507541,1759687845744,-500.0,0.00016986,2]
[389507542,1759687845754,-1023.64,0.00016986,2]
[389507543,1759687845763,-500.0,0.00016986,2]
[389507544,1759687845772,-771.83,0.00016986,2]
[389507545,1759687845782,-151.0,0.00016986,2]
[389507546,1759687845792,-1768.07,0.00016986,2]
[389507547,1759687845801,-500.0,0.00016986,2]
[389507548,1759687845811,-500.0,0.00016986,2]
[389507549,1759687845819,-500.0,0.00016986,2]
[389507550,1759687845829,-500.0,0.00016986,2]
[389507551,1759687845839,-500.0,0.00016986,2]
[389507552,1759687845850,-500.0,0.00016986,2]
[389507553,1759687845860,-481.80959482,0.00016986,2]
[389507554,1759687845869,-500.0,0.00016986,2]
[389507555,1759687845878,-500.0,0.00016986,2]
[389507556,1759687845888,-806.86,0.00016986,2]
[389507557,1759687845898,-529.32,0.00016986,2]
[389507558,1759687845908,-1842.51,0.00016986,2]
[389507559,1759687845919,-583.35,0.00016986,2]
[389507560,1759687845929,-151.0,0.00016986,2]
[389507561,1759687845938,-627.9,0.00016986,2]
[389507562,1759687845947,-151.0,0.00016986,2]
[389507563,1759687845957,-560.87,0.00016986,2]
[389507564,1759687845966,-500.0,0.00016986,2]
[389507565,1759687845975,-500.0,0.00016986,2]
[389507566,1759687845984,-500.0,0.00016986,2]
[389507567,1759687845993,-155.610953,0.00016986,2]
[389507568,1759687846002,-500.0,0.00016986,2]
[389507570,1759687846011,-193.017752,0.00016986,2]
[389507572,1759687846020,-151.0,0.00016986,2]
[389507574,1759687846029,-151.0,0.00016986,2]
[389507576,1759687846038,-151.0,0.00016986,2]
[389507577,1759687846047,-1020.05,0.00016986,2]
[389507578,1759687846058,-500.0,0.00016986,2]
[389507579,1759687846067,-658.95,0.00016986,2]
[389507580,1759687846077,-1046.45,0.00016986,2]
[389507581,1759687846087,-151.0,0.00016986,2]
[389507582,1759687846096,-1309.62,0.00016986,2]
[389507583,1759687846107,-609.51,0.00016986,2]
[389507585,1759687846117,-615.09,0.00016986,2]
[389507587,1759687846127,-2661.63,0.00016986,2]
[389507589,1759687846137,-2666.0,0.00016986,2]
[389507590,1759687846147,-1828.97,0.00016986,2]
[389507592,1759687846156,-1626.14,0.00016986,2]
[389507594,1759687846166,-4239.72,0.00016986,2]
[389507597,1759687846176,-5720.36,0.00016986,2]
[389507599,1759687846187,-828.87,0.00016986,2]
[389507601,1759687846196,-588.48,0.00016986,2]
[389507603,1759687846207,-500.0,0.00016986,2]
[389507605,1759687846216,-1070.65,0.00016986,2]
[389507607,1759687846225,-151.0,0.00016986,2]
[389507609,1759687846234,-1050.91,0.00016986,2]
[389507611,1759687846246,-599.42,0.00016986,2]
[389507613,1759687846255,-151.0,0.00016986,2]
[389507615,1759687846264,-500.0,0.00016986,2]
[389507617,1759687846273,-514.98,0.00016986,2]
[389507618,1759687846282,-153.189557,0.00016986,2]
[389507620,1759687846291,-1093.9,0.00016986,2]
[389507621,1759687846300,-151.0,0.00016986,2]
[389507622,1759687846309,-503.35,0.00016986,2]
[389507623,1759687846318,-2740.39,0.00016986,2]
[389507624,1759687846327,-589.51,0.00016986,2]
[389507625,1759687846336,-151.0,0.00016986,2]
[389507626,1759687846345,-269.592529,0.00016986,2]
[389507627,1759687846356,-853.7,0.00016986,2]
[389507628,1759687846365,-1305.52,0.00016986,2]
[389507629,1759687846374,-151.0,0.00016986,2]
[389507630,1759687846383,-927.2,0.00016986,2]
[389507631,1759687846392,-1901.38,0.00016986,2]
[389507632,1759687846401,-503.11,0.00016986,2]
[389507633,1759687846410,-500.0,0.00016986,2]
[389507634,1759687846419,-500.0,0.00016986,2]
[389507635,1759687846429,-1127.17,0.00016986,2]
[389507636,1759687846440,-3235.97,0.00016986,2]
[389507637,1759687846449,-651.49,0.00016986,2]
[389507639,1759687846459,-3077.68,0.00016986,2]
[389507640,1759687846468,-500.0,0.00016986,2]
[389507641,1759687846478,-500.0,0.00016986,2]
[389507643,1759687846487,-4260.69,0.00016986,2]
[389507645,1759687846496,-763.85,0.00016986,2]
[389507646,1759687846506,-500.0,0.00016986,2]
[389507648,1759687846515,-500.0,0.00016986,2]
[389507650,1759687846524,-862.89,0.00016986,2]
[389507652,1759687846533,-500.0,0.00016986,2]
[389507654,1759687846542,-639.74,0.00016986,2]
[389507655,1759687846551,-500.0,0.00016986,2]
[389507657,1759687846560,-500.0,0.00016986,2]
[389507659,1759687846569,-737.73,0.00016986,2]
[389507661,1759687846578,-1434.52,0.00016986,2]
[389507663,1759687846587,-151.0,0.00016986,2]
[389507665,1759687846596,-542.52,0.00016986,2]
[389507667,1759687846606,-500.0,0.00016986,2]
[389507669,1759687846616,-778.39,0.00016986,2]
[389507671,1759687846625,-3536.35,0.00016986,2]
[389507673,1759687846634,-289.31838181,0.00016986,2]
[389507675,1759687846643,-574.55,0.00016986,2]
[389507677,1759687846651,-2718.99,0.00016986,2]
[389507679,1759687846660,-1905.48,0.00016986,2]
[389507681,1759687846669,-862.29,0.00016986,2]
[389507683,1759687846679,-500.0,0.00016986,2]
[389507685,1759687846689,-151.0,0.00016986,2]
[389507686,1759687846698,-1435.96,0.00016986,2]
[389507690,1759687846708,-877.28,0.00016986,2]
[389507693,1759687846717,-151.0,0.00016986,2]
[389507695,1759687846726,-500.0,0.00016986,2]
[389507697,1759687846736,-852.06,0.00016986,2]
[389507698,1759687846745,-500.0,0.00016986,2]
[389507700,1759687846754,-1310.45,0.00016986,2]
[389507702,1759687846764,-1610.43,0.00016986,2]
[389507703,1759687846774,-594.37,0.00016986,2]
[389507704,1759687846783,-500.0,0.00016986,2]
[389507705,1759687846792,-490.20991956,0.00016986,2]
[389507706,1759687846801,-2562.41,0.00016986,2]
[389507707,1759687846810,-500.0,0.00016986,2]
[389507708,1759687846819,-2155.34,0.00016986,2]
[389507709,1759687846828,-500.0,0.00016986,2]
[389507710,1759687846837,-500.0,0.00016986,2]
[389507711,1759687846846,-727.22,0.00016986,2]
[389507712,1759687846856,-500.0,0.00016986,2]
[389507713,1759687846864,-500.0,0.00016986,2]
[389507714,1759687846874,-7008.73,0.00016986,2]
[389507715,1759687846883,-656.12,0.00016986,2]
[389507716,1759687846891,-500.0,0.00016986,2]
[389507717,1759687846900,-629.51,0.00016986,2]
[389507718,1759687846909,-617.83,0.00016986,2]
[389507719,1759687846918,-500.0,0.00016986,2]
[389507720,1759687846927,-668.36,0.00016986,2]
[389507721,1759687846936,-804.04,0.00016986,2]
[389507722,1759687846944,-500.0,0.00016986,2]
[389507723,1759687846953,-2243.64,0.00016986,2]
[389507724,1759687846962,-3954.040906,0.00016986,2]
[389507725,1759687846971,-151.0,0.00016986,2]
[389507726,1759687846980,-3954.040906,0.00016986,2]
[389507727,1759687846989,-500.0,0.00016986,2]
[389507728,1759687846998,-3954.040906,0.00016986,2]
[389507729,1759687847007,-500.0,0.00016986,2]
[389507730,1759687847015,-151.0,0.00016986,2]
[389507731,1759687847024,-151.0,0.00016986,2]
[389507732,1759687847033,-3954.040906,0.00016986,2]
[389507733,1759687847043,-500.0,0.00016986,2]
[389507734,1759687847052,-500.0,0.00016986,2]
[389507735,1759687847061,-4380.42,0.00016986,2]
[389507736,1759687847071,-500.0,0.00016986,2]
[389507737,1759687847080,-151.0,0.00016986,2]
[389507738,1759687847090,-500.0,0.00016986,2]
[389507739,1759687847098,-500.0,0.00016986,2]
[389507740,1759687847111,-2120.12,0.00016986,2]
[389507741,1759687847120,-155.350315,0.00016986,2]
[389507742,1759687847129,-509.72,0.00016986,2]
[389507743,1759687847138,-951.56,0.00016986,2]
[389507744,1759687847147,-1522.45,0.00016986,2]
[389507745,1759687847156,-151.0,0.00016986,2]
[389507746,1759687847165,-193.432937,0.00016986,2]
[389507747,1759687847174,-834.15,0.00016986,2]
[389507748,1759687847184,-1177.73,0.00016986,2]
[389507749,1759687847193,-500.0,0.00016986,2]
[389507750,1759687847202,-2223.13,0.00016986,2]
[389507751,1759687847211,-6556.1,0.00016986,2]
[389507752,1759687847220,-751.99,0.00016986,2]
[389507753,1759687847229,-500.0,0.00016986,2]
[389507754,1759687847238,-500.0,0.00016986,2]
[389507755,1759687847246,-156.53734306,0.00016986,2]
[389507756,1759687847255,-1888.94,0.00016986,2]
[389507757,1759687847264,-166.68,0.00016986,2]
[389507758,1759687847274,-500.0,0.00016986,2]
[389507759,1759687847283,-500.0,0.00016986,2]
[389507760,1759687847291,-500.0,0.00016986,2]
[389507761,1759687847300,-151.0,0.00016986,2]
[389507762,1759687847309,-1894.57,0.00016986,2]
[389507763,1759687847317,-500.0,0.00016986,2]
[389507764,1759687847326,-6278.51,0.00016986,2]
[389507765,1759687847335,-500.0,0.00016986,2]
[389507766,1759687847344,-500.0,0.00016986,2]
[389507767,1759687847353,-500.0,0.00016986,2]
[389507768,1759687847362,-151.0,0.00016986,2]
[389507769,1759687847371,-500.0,0.00016986,2]
[389507770,1759687847380,-184.6634847,0.00016986,2]
[389507771,1759687847389,-500.0,0.00016986,2]
[389507772,1759687847398,-92020.99886271,0.0001699,2]
[389507773,1759687847407,-349.0,0.00017008,2]
[389507774,1759687847417,-179.28261897,0.00017059,2]
[389507775,1759687847427,-409.0,0.00017133,2]
[389507776,1759687847442,-431.35285328,0.00017178,2]
[389507777,1759687847452,-1725.41141312,0.00017178,2]
[389507778,1759687847461,-3882.17567952,0.00017178,2]
[389507779,1759687847472,-6894.74400682,0.00017178,2]
[389507780,1759687847483,-482.9629272,0.00017178,2]
[389507781,1759687847493,-348.0,0.00017227,2]
[389507782,1759687847502,-500.0,0.0001726,2]
[389507783,1759687847511,-268.05,0.0001726,2]
[389507784,1759687847520,-500.0,0.0001726,2]
[389507785,1759687847530,-500.0,0.0001726,2]
[389507786,1759687847539,-500.0,0.0001726,2]
[389507787,1759687847547,-1215.65,0.0001726,2]
[389507788,1759687847556,-811.82,0.0001726,2]
[389507789,1759687847565,-500.0,0.0001726,2]
[389507790,1759687847574,-500.0,0.0001726,2]
[389507791,1759687847583,-500.0,0.0001726,2]
[389507792,1759687847591,-500.0,0.0001726,2]
[389507793,1759687847600,-500.0,0.0001726,2]
[389507794,1759687847610,-500.0,0.0001726,2]
[389507795,1759687847619,-500.0,0.0001726,2]
[389507796,1759687847627,-500.0,0.0001726,2]
[389507797,1759687847636,-328.97343637,0.0001726,2]
[389507798,1759687847645,-809.08,0.0001726,2]
[389507799,1759687847654,-500.0,0.0001726,2]
[389507800,1759687847663,-500.0,0.0001726,2]
[389507801,1759687847672,-846.11,0.0001726,2]
[389507802,1759687847681,-151.0,0.0001726,2]
[389507803,1759687847690,-500.0,0.0001726,2]
[389507804,1759687847700,-500.0,0.0001726,2]
[389507805,1759687847709,-540.29,0.0001726,2]
[389507806,1759687847718,-500.0,0.0001726,2]
[389507807,1759687847728,-500.0,0.0001726,2]
[389507808,1759687847737,-331.36520157,0.0001726,2]
[389507809,1759687847746,-500.0,0.0001726,2]
[389507810,1759687847755,-500.0,0.0001726,2]
[389507811,1759687847764,-500.0,0.0001726,2]
[389507812,1759687847774,-607.65,0.0001726,2]
[389507813,1759687847783,-1090.27,0.0001726,2]
[389507814,1759687847792,-190.07540932,0.0001726,2]
[389507815,1759687847801,-500.0,0.0001726,2]
[389507816,1759687847811,-500.0,0.0001726,2]
[389507817,1759687847821,-500.0,0.0001726,2]
[389507818,1759687847830,-500.0,0.0001726,2]
[389507819,1759687847839,-500.0,0.0001726,2]
[389507820,1759687847848,-500.0,0.0001726,2]
[389507821,1759687847858,-500.0,0.0001726,2]
[389507822,1759687847867,-1126.21,0.0001726,2]
[389507823,1759687847878,-500.0,0.0001726,2]
[389507824,1759687847887,-1970.08,0.0001726,2]
[389507825,1759687847897,-500.0,0.0001726,2]
[389507826,1759687847906,-688.66,0.0001726,2]
[389507827,1759687847916,-500.0,0.0001726,2]
[389507828,1759687847925,-500.0,0.0001726,2]
[389507829,1759687847934,-500.0,0.0001726,2]
[389507830,1759687847943,-826.99,0.0001726,2]
[389507831,1759687847952,-509.47,0.0001726,2]
[389507832,1759687847962,-451.36371341,0.0001726,2]
[389507833,1759687847972,-500.0,0.0001726,2]
[389507834,1759687847981,-500.0,0.0001726,2]
[389507835,1759687847990,-500.0,0.0001726,2]
[389507836,1759687847999,-500.0,0.0001726,2]
[389507837,1759687848009,-500.0,0.0001726,2]
[389507838,1759687848018,-527.85,0.0001726,2]
[389507839,1759687848028,-1261.15,0.0001726,2]
[389507840,1759687848037,-551.82,0.0001726,2]
[389507841,1759687848046,-500.0,0.0001726,2]
[389507842,1759687848055,-2109.13,0.0001726,2]
[389507843,1759687848065,-500.0,0.0001726,2]
[389507844,1759687848074,-500.0,0.0001726,2]
[389507845,1759687848084,-1075.56,0.0001726,2]
[389507846,1759687848093,-500.0,0.0001726,2]
[389507847,1759687848103,-913.77,0.0001726,2]
[389507848,1759687848112,-500.0,0.0001726,2]
[389507849,1759687848121,-500.0,0.0001726,2]
[389507850,1759687848130,-500.0,0.0001726,2]
[389507851,1759687848139,-500.0,0.0001726,2]
[389507852,1759687848148,-823.64,0.0001726,2]
[389507853,1759687848158,-500.0,0.0001726,2]
[389507854,1759687848167,-506.22,0.0001726,2]
[389507855,1759687848176,-500.0,0.0001726,2]
[389507856,1759687848186,-500.0,0.0001726,2]
[389507857,1759687848195,-1262.69,0.0001726,2]
[389507858,1759687848204,-500.0,0.0001726,2]
[389507859,1759687848214,-533.65729588,0.0001726,2]
[389507860,1759687848223,-500.0,0.0001726,2]
[389507861,1759687848232,-500.0,0.0001726,2]
[389507862,1759687848242,-500.0,0.0001726,2]
[389507863,1759687848251,-1023.64,0.0001726,2]
[389507864,1759687848259,-500.0,0.0001726,2]
[389507865,1759687848269,-771.83,0.0001726,2]
[389507866,1759687848278,-1768.07,0.0001726,2]
[389507867,1759687848287,-500.0,0.0001726,2]
[389507868,1759687848296,-500.0,0.0001726,2]
[389507869,1759687848305,-500.0,0.0001726,2]
[389507870,1759687848314,-500.0,0.0001726,2]
[389507871,1759687848324,-500.0,0.0001726,2]
[389507872,1759687848333,-500.0,0.0001726,2]
[389507873,1759687848343,-500.0,0.0001726,2]
[389507874,1759687848353,-806.86,0.0001726,2]
[389507875,1759687848363,-529.32,0.0001726,2]
[389507876,1759687848373,-1842.51,0.0001726,2]
[389507877,1759687848383,-583.35,0.0001726,2]
[389507878,1759687848392,-151.0,0.0001726,2]
[389507879,1759687848402,-627.9,0.0001726,2]
[389507880,1759687848411,-151.0,0.0001726,2]
[389507881,1759687848421,-560.87,0.0001726,2]
[389507882,1759687848432,-500.0,0.0001726,2]
[389507883,1759687848442,-500.0,0.0001726,2]
[389507884,1759687848452,-500.0,0.0001726,2]
[389507885,1759687848462,-561.15140565,0.0001726,2]
[389507886,1759687848473,-151.0,0.0001726,2]
[389507887,1759687848483,-151.0,0.0001726,2]
[389507888,1759687848495,-1020.05,0.0001726,2]
[389507889,1759687848509,-500.0,0.0001726,2]
[389507890,1759687848519,-658.95,0.0001726,2]
[389507891,1759687848530,-1046.45,0.0001726,2]
[389507892,1759687848540,-1309.62,0.0001726,2]
[389507893,1759687848551,-609.51,0.0001726,2]
[389507894,1759687848560,-615.09,0.0001726,2]
[389507895,1759687848570,-2661.63,0.0001726,2]
[389507896,1759687848580,-2666.0,0.0001726,2]
[389507897,1759687848590,-1828.97,0.0001726,2]
[389507898,1759687848600,-1626.14,0.0001726,2]
[389507899,1759687848611,-4239.72,0.0001726,2]
[389507900,1759687848620,-5720.36,0.0001726,2]
[389507901,1759687848630,-828.87,0.0001726,2]
[389507902,1759687848639,-588.48,0.0001726,2]
[389507903,1759687848649,-629.80299077,0.0001726,2]
[389507904,1759687848659,-1070.65,0.0001726,2]
[389507905,1759687848669,-1050.91,0.0001726,2]
[389507906,1759687848680,-599.42,0.0001726,2]
[389507907,1759687848690,-492.18,0.0001726,2]
[389507908,1759687848699,-514.98,0.0001726,2]
[389507909,1759687848709,-1093.9,0.0001726,2]
[389507910,1759687848718,-503.35,0.0001726,2]
[389507911,1759687848728,-151.0,0.0001726,2]
[389507912,1759687848738,-2740.39,0.0001726,2]
[389507913,1759687848748,-589.51,0.0001726,2]
[389507914,1759687848757,-223.135702,0.0001726,2]
[389507915,1759687848767,-853.7,0.0001726,2]
[389507916,1759687848777,-1305.52,0.0001726,2]
[389507917,1759687848788,-927.2,0.0001726,2]
[389507918,1759687848798,-1901.38,0.0001726,2]
[389507919,1759687848809,-503.11,0.0001726,2]
[389507920,1759687848819,-500.0,0.0001726,2]
[389507921,1759687848830,-500.0,0.0001726,2]
[389507922,1759687848840,-1127.17,0.0001726,2]
[389507923,1759687848852,-3235.97,0.0001726,2]
[389507924,1759687848862,-651.49,0.0001726,2]
[389507925,1759687848871,-3077.68,0.0001726,2]
[389507926,1759687848881,-500.0,0.0001726,2]
[389507927,1759687848892,-500.0,0.0001726,2]
[389507928,1759687848902,-4260.69,0.0001726,2]
[389507929,1759687848912,-763.85,0.0001726,2]
[389507930,1759687848923,-500.0,0.0001726,2]
[389507931,1759687848934,-553.27703503,0.0001726,2]
[389507932,1759687848944,-862.89,0.0001726,2]
[389507933,1759687848954,-500.0,0.0001726,2]
[389507934,1759687848964,-639.74,0.0001726,2]
[389507935,1759687848974,-521.26,0.0001726,2]
[389507936,1759687848984,-500.0,0.0001726,2]
[389507937,1759687848993,-737.73,0.0001726,2]
[389507938,1759687849002,-1434.52,0.0001726,2]
[389507939,1759687849012,-542.52,0.0001726,2]
[389507940,1759687849021,-500.0,0.0001726,2]
[389507941,1759687849031,-778.39,0.0001726,2]
[389507942,1759687849041,-3536.35,0.0001726,2]
[389507943,1759687849051,-574.55,0.0001726,2]
[389507944,1759687849061,-2718.99,0.0001726,2]
[389507945,1759687849071,-1905.48,0.0001726,2]
[389507946,1759687849080,-862.29,0.0001726,2]
[389507947,1759687849090,-500.0,0.0001726,2]
[389507948,1759687849100,-1435.96,0.0001726,2]
[389507949,1759687849110,-877.28,0.0001726,2]
[389507950,1759687849120,-500.0,0.0001726,2]
[389507951,1759687849130,-852.06,0.0001726,2]
[389507952,1759687849140,-500.0,0.0001726,2]
[389507953,1759687849149,-1310.45,0.0001726,2]
[389507954,1759687849160,-1610.43,0.0001726,2]
[389507955,1759687849170,-594.37,0.0001726,2]
[389507956,1759687849179,-500.0,0.0001726,2]
[389507957,1759687849189,-2562.41,0.0001726,2]
[389507958,1759687849199,-500.0,0.0001726,2]
[389507959,1759687849209,-2155.34,0.0001726,2]
[389507960,1759687849220,-500.0,0.0001726,2]
[389507961,1759687849230,-500.0,0.0001726,2]
[389507962,1759687849239,-727.22,0.0001726,2]
[389507963,1759687849249,-500.0,0.0001726,2]
[389507964,1759687849259,-500.0,0.0001726,2]
[389507965,1759687849268,-7008.73,0.0001726,2]
[389507966,1759687849277,-656.12,0.0001726,2]
[389507967,1759687849287,-500.0,0.0001726,2]
[389507968,1759687849296,-500.0,0.0001726,2]
[389507969,1759687849306,-629.51,0.0001726,2]
[389507970,1759687849315,-617.83,0.0001726,2]
[389507971,1759687849325,-500.0,0.0001726,2]
[389507972,1759687849335,-668.36,0.0001726,2]
[389507973,1759687849344,-804.04,0.0001726,2]
[389507974,1759687849354,-2243.64,0.0001726,2]
[389507975,1759687849363,-3954.040906,0.0001726,2]
[389507976,1759687849373,-3954.040906,0.0001726,2]
[389507977,1759687849382,-500.0,0.0001726,2]
[389507978,1759687849392,-3954.040906,0.0001726,2]
[389507979,1759687849401,-500.0,0.0001726,2]
[389507980,1759687849410,-3954.040906,0.0001726,2]
[389507981,1759687849419,-500.0,0.0001726,2]
[389507982,1759687849431,-500.0,0.0001726,2]
[389507983,1759687849441,-4380.42,0.0001726,2]
[389507984,1759687849450,-500.0,0.0001726,2]
[389507985,1759687849460,-151.0,0.0001726,2]
[389507986,1759687849471,-500.0,0.0001726,2]
[389507987,1759687849480,-2120.12,0.0001726,2]
[389507988,1759687849490,-509.72,0.0001726,2]
[389507989,1759687849500,-951.56,0.0001726,2]
[389507990,1759687849510,-1522.45,0.0001726,2]
[389507991,1759687849521,-151.0,0.0001726,2]
[389507992,1759687849531,-1177.73,0.0001726,2]
[389507993,1759687849541,-500.0,0.0001726,2]
[389507994,1759687849550,-834.15,0.0001726,2]
[389507995,1759687849560,-2223.13,0.0001726,2]
[389507996,1759687849569,-6556.1,0.0001726,2]
[389507997,1759687849579,-751.99,0.0001726,2]
[389507998,1759687849589,-500.0,0.0001726,2]
[389507999,1759687849600,-1888.94,0.0001726,2]
[389508000,1759687849611,-500.0,0.0001726,2]
[389508001,1759687849620,-500.0,0.0001726,2]
[389508002,1759687849630,-151.0,0.0001726,2]
[389508003,1759687849639,-1894.57,0.0001726,2]
[389508004,1759687849649,-500.0,0.0001726,2]
[389508005,1759687849659,-6278.51,0.0001726,2]
[389508006,1759687849668,-500.0,0.0001726,2]
[389508007,1759687849678,-500.0,0.0001726,2]
[389508008,1759687849688,-500.0,0.0001726,2]
[389508009,1759687849698,-226.35557,0.0001726,2]
[389508010,1759687849707,-500.0,0.0001726,2]
[389508011,1759687849717,-19292.2273969,0.00017307,2]
[389508012,1759687849727,-168.3888056,0.00017307,2]
[389508013,1759687849737,-202.314797,0.00017307,2]
[389508014,1759687849746,-179.28261897,0.00017506,2]
[389508015,1759687849756,-189.5044535,0.00017517,2]
[389508016,1759687849766,-315.8680611,0.00017517,2]
[389508017,1759687849775,-500.0,0.00017534,2]
[389508018,1759687849785,-500.0,0.00017534,2]
[389508019,1759687849794,-500.0,0.00017534,2]
[389508020,1759687849804,-500.0,0.00017534,2]
[389508021,1759687849814,-500.0,0.00017534,2]
[389508022,1759687849823,-1215.65,0.00017534,2]